[Event "Polofinale MCR juniorek 2023"]
[Site "Czech Republic"]
[Date "2023.11.14"]
[Round "4.9"]
[White "Sikorova, Jana"]
[Black "Kavanova, Anezka"]
[Result "1-0"]
[TimeControl "90 min per 40 moves + 15 min + 30 sec / move from move 1"]
[WhiteFideId "392472"]
[BlackFideId "23745517"]
[WhiteElo "1662"]
[BlackElo "1434"]

1. d4 {[%clk 01:30:56]} {[%emt 00:00:02]} d5 {[%clk 01:30:44]} {[%emt
00:00:17]} 2. c4 {[%clk 01:31:19]} {[%emt 00:00:06]} e6 {[%clk 01:31:10]}
{[%emt 00:00:04]} 3. Nf3 {[%clk 01:31:22]} {[%emt 00:00:27]} c5 {[%clk
01:31:24]} {[%emt 00:00:17]} 4. cxd5 {[%clk 01:29:39]} {[%emt 00:02:13]} exd5
{[%clk 01:31:42]} {[%emt 00:00:12]} 5. Nc3 {[%clk 01:26:45]} {[%emt 00:03:24]}
Nc6 {[%clk 01:27:56]} {[%emt 00:04:16]} 6. Bf4 {[%clk 01:22:44]} {[%emt
00:04:30]} Nf6 {[%clk 01:26:24]} {[%emt 00:02:04]} 7. e3 {[%clk 01:19:45]}
{[%emt 00:03:28]} Bf5 {[%clk 01:22:33]} {[%emt 00:04:21]} 8. a3 {[%clk
01:14:04]} {[%emt 00:06:12]} Rc8 {[%clk 01:17:40]} {[%emt 00:05:22]} 9. Be2
{[%clk 01:11:28]} {[%emt 00:03:05]} Bd6 {[%clk 01:06:21]} {[%emt 00:11:50]} 10.
Bg5 {[%clk 01:04:33]} {[%emt 00:07:24]} Be7 {[%clk 01:03:18]} {[%emt 00:03:34]}
11. dxc5 {[%clk 01:01:46]} {[%emt 00:03:17]} Be6 {[%clk 01:01:58]} {[%emt
00:01:49]} 12. b4 {[%clk 00:56:14]} {[%emt 00:06:02]} b6 {[%clk 00:55:25]}
{[%emt 00:07:04]} 13. cxb6 {[%clk 00:51:16]} {[%emt 00:05:28]} Qxb6 {[%clk
00:55:19]} {[%emt 00:00:36]} 14. Na4 {[%clk 00:49:10]} {[%emt 00:02:36]} Qd8
{[%clk 00:53:14]} {[%emt 00:02:36]} 15. O-O {[%clk 00:47:48]} {[%emt 00:01:51]}
h6 {[%clk 00:52:02]} {[%emt 00:01:43]} 16. Bh4 {[%clk 00:45:03]} {[%emt
00:03:14]} g5 {[%clk 00:51:09]} {[%emt 00:01:23]} 17. Bg3 {[%clk 00:43:20]}
{[%emt 00:02:12]} Ne4 {[%clk 00:51:24]} {[%emt 00:00:16]} 18. Rc1 {[%clk
00:40:42]} {[%emt 00:03:07]} Nxg3 {[%clk 00:47:12]} {[%emt 00:04:43]} 19. hxg3
{[%clk 00:40:57]} {[%emt 00:00:15]} Bf6 {[%clk 00:40:32]} {[%emt 00:07:11]} 20.
Bb5 {[%clk 00:36:48]} {[%emt 00:04:39]} Qd6 {[%clk 00:40:02]} {[%emt 00:00:59]}
21. Nd4 {[%clk 00:36:05]} {[%emt 00:01:13]} Bxd4 {[%clk 00:26:04]} {[%emt
00:14:29]} 22. Qxd4 {[%clk 00:35:12]} {[%emt 00:01:22]} O-O {[%clk 00:20:23]}
{[%emt 00:06:10]} 23. Qf6 {[%clk 00:33:11]} {[%emt 00:02:31]} 1-0

[Event "Polofinale MCR juniorek 2023"]
[Site "Czech Republic"]
[Date "2023.11.14"]
[Round "4.10"]
[White "Petirova, Iva"]
[Black "Reznickova, Sibyla"]
[Result "1-0"]
[TimeControl "90 min per 40 moves + 15 min + 30 sec / move from move 1"]
[WhiteFideId "23741961"]
[BlackFideId "398721"]
[WhiteElo "1636"]
[BlackElo "1413"]

1. e4 {[%clk 01:30:57]} {[%emt 00:00:03]} e5 {[%clk 01:30:42]} {[%emt
00:00:19]} 2. Nf3 {[%clk 01:31:17]} {[%emt 00:00:10]} Nc6 {[%clk 01:30:48]}
{[%emt 00:00:24]} 3. Bb5 {[%clk 01:31:26]} {[%emt 00:00:20]} Bc5 {[%clk
01:28:26]} {[%emt 00:02:52]} 4. c3 {[%clk 01:31:17]} {[%emt 00:00:40]} Qe7
{[%clk 01:19:17]} {[%emt 00:09:39]} 5. O-O {[%clk 01:29:54]} {[%emt 00:01:53]}
a6 {[%clk 01:17:32]} {[%emt 00:02:16]} 6. Bxc6 {[%clk 01:26:54]} {[%emt
00:03:29]} dxc6 {[%clk 01:15:02]} {[%emt 00:03:00]} 7. d4 {[%clk 01:26:52]}
{[%emt 00:00:32]} exd4 {[%clk 01:08:50]} {[%emt 00:06:42]} 8. cxd4 {[%clk
01:27:12]} {[%emt 00:00:10]} Bb6 {[%clk 01:08:10]} {[%emt 00:01:10]} 9. Nc3
{[%clk 01:15:19]} {[%emt 00:12:23]} Bg4 {[%clk 01:01:41]} {[%emt 00:06:58]} 10.
d5 {[%clk 00:56:37]} {[%emt 00:19:12]} Rd8 {[%clk 00:54:11]} {[%emt 00:08:01]}
11. h3 {[%clk 00:49:57]} {[%emt 00:07:10]} Bh5 {[%clk 00:52:34]} {[%emt
00:02:06]} 12. Bg5 {[%clk 00:42:17]} {[%emt 00:08:10]} f6 {[%clk 00:49:51]}
{[%emt 00:03:13]} 13. Bf4 {[%clk 00:37:15]} {[%emt 00:05:33]} Qb4 {[%clk
00:45:30]} {[%emt 00:04:50]} 14. Qe2 {[%clk 00:31:14]} {[%emt 00:06:32]} Bxf3
{[%clk 00:32:54]} {[%emt 00:13:05]} 15. Qxf3 {[%clk 00:31:39]} {[%emt
00:00:06]} Qxb2 {[%clk 00:28:33]} {[%emt 00:04:50]} 16. dxc6 {[%clk 00:30:20]}
{[%emt 00:01:48]} bxc6 {[%clk 00:27:42]} {[%emt 00:01:21]} 17. e5 {[%clk
00:30:36]} {[%emt 00:00:14]} Ne7 {[%clk 00:25:18]} {[%emt 00:02:54]} 18. exf6
{[%clk 00:28:44]} {[%emt 00:02:23]} gxf6 {[%clk 00:24:55]} {[%emt 00:00:53]} 19.
Rae1 {[%clk 00:28:32]} {[%emt 00:00:42]} Kf7 {[%clk 00:16:58]} {[%emt
00:08:27]} 20. Re2 {[%clk 00:23:54]} {[%emt 00:05:08]} Qb4 {[%clk 00:15:08]}
{[%emt 00:02:20]} 21. Rfe1 {[%clk 00:23:39]} {[%emt 00:00:44]} Rd7 {[%clk
00:10:09]} {[%emt 00:05:29]} 22. Be5 {[%clk 00:16:06]} {[%emt 00:08:03]} Qh4
{[%clk 00:08:16]} {[%emt 00:02:23]} 23. Ne4 {[%clk 00:09:37]} {[%emt 00:06:59]}
Nd5 {[%clk 00:08:07]} {[%emt 00:00:39]} 24. Bg3 {[%clk 00:09:27]} {[%emt
00:00:40]} Qh6 {[%clk 00:07:55]} {[%emt 00:00:41]} 25. Nd2 {[%clk 00:07:47]}
{[%emt 00:02:11]} Ba5 {[%clk 00:07:42]} {[%emt 00:00:43]} 26. Nc4 {[%clk
00:07:08]} {[%emt 00:01:10]} Bxe1 {[%clk 00:06:46]} {[%emt 00:01:25]} 27. Ne5+
{[%clk 00:07:35]} {[%emt 00:00:04]} Ke7 {[%clk 00:06:14]} {[%emt 00:01:01]} 28.
Nxd7+ {[%clk 00:07:46]} {[%emt 00:00:19]} Kxd7 {[%clk 00:06:28]} {[%emt
00:00:17]} 29. Qf5+ {[%clk 00:07:29]} {[%emt 00:00:46]} Kd8 {[%clk 00:06:35]}
{[%emt 00:00:23]} 30. Rxe1 {[%clk 00:07:31]} {[%emt 00:00:28]} Rf8 {[%clk
00:06:19]} {[%emt 00:00:45]} 31. Qe6 {[%clk 00:07:10]} {[%emt 00:00:51]} Qd2
{[%clk 00:05:55]} {[%emt 00:00:54]} 32. Rb1 {[%clk 00:06:55]} {[%emt 00:00:45]}
Nb6 {[%clk 00:04:56]} {[%emt 00:01:29]} 33. Qxc6 {[%clk 00:06:40]} {[%emt
00:00:45]} Qd7 {[%clk 00:04:49]} {[%emt 00:00:36]} 34. Qc5 {[%clk 00:06:42]}
{[%emt 00:00:29]} Rg8 {[%clk 00:04:04]} {[%emt 00:01:12]} 35. a4 {[%clk
00:06:14]} {[%emt 00:01:01]} Rg5 {[%clk 00:03:53]} {[%emt 00:00:41]} 36. Qf8+
{[%clk 00:06:31]} {[%emt 00:00:13]} Qe8 {[%clk 00:04:05]} {[%emt 00:00:18]} 37.
Qxf6+ {[%clk 00:06:48]} {[%emt 00:00:12]} Qe7 {[%clk 00:04:08]} {[%emt
00:00:28]} 38. Qc6 {[%clk 00:06:16]} {[%emt 00:01:03]} Rd5 {[%clk 00:02:35]}
{[%emt 00:02:02]} 39. Kh2 {[%clk 00:06:23]} {[%emt 00:00:23]} Ra5 {[%clk
00:02:34]} {[%emt 00:00:30]} 40. Rxb6 {[%clk 00:06:18]} {[%emt 00:00:36]} 1-0

[Event "Polofinale MCR juniorek 2023"]
[Site "Czech Republic"]
[Date "2023.11.14"]
[Round "4.11"]
[White "Vavrinkova, Marie"]
[Black "Taborska, Aneta"]
[Result "1-0"]
[TimeControl "90 min per 40 moves + 15 min + 30 sec / move from move 1"]
[WhiteFideId "392154"]
[BlackFideId "23733039"]
[WhiteElo "1492"]
[BlackElo "1165"]

1. d4 {[%clk 01:30:56]} {[%emt 00:00:03]} Nf6 {[%clk 01:30:46]} {[%emt
00:00:14]} 2. c4 {[%clk 01:31:10]} {[%emt 00:00:17]} g6 {[%clk 01:30:56]}
{[%emt 00:00:19]} 3. Nc3 {[%clk 01:31:00]} {[%emt 00:00:40]} Bg7 {[%clk
01:30:51]} {[%emt 00:00:35]} 4. e3 {[%clk 01:30:46]} {[%emt 00:00:44]} O-O
{[%clk 01:30:21]} {[%emt 00:00:58]} 5. Nf3 {[%clk 01:30:19]} {[%emt 00:00:58]}
d5 {[%emt 00:00:39]} 6. Be2 {[%clk 01:29:28]} {[%emt 00:01:19]} Re8 {[%clk
01:29:51]} {[%emt 00:00:53]} 7. O-O {[%clk 01:28:29]} {[%emt 00:01:30]} b6
{[%clk 01:29:57]} {[%emt 00:00:25]} 8. Ne5 {[%clk 01:24:36]} {[%emt 00:04:22]}
Bb7 {[%clk 01:28:17]} {[%emt 00:02:10]} 9. Bf3 {[%clk 01:22:26]} {[%emt
00:02:39]} e6 {[%emt 00:01:04]} 10. Re1 {[%clk 01:20:39]} {[%emt 00:02:12]}
Nbd7 {[%clk 01:24:48]} {[%emt 00:03:29]} 11. Qc2 {[%clk 01:09:32]} {[%emt
00:11:39]} c5 {[%clk 01:24:15]} {[%emt 00:01:03]} 12. Nb5 {[%clk 01:06:03]}
{[%emt 00:03:58]} Qb8 {[%clk 01:21:03]} {[%emt 00:03:38]} 13. cxd5 {[%clk
01:01:50]} {[%emt 00:04:48]} exd5 {[%clk 01:19:58]} {[%emt 00:01:34]} 14. Nd3
{[%clk 00:58:34]} {[%emt 00:03:45]} a6 {[%clk 01:18:20]} {[%emt 00:02:08]} 15.
Nc3 {[%clk 00:57:51]} {[%emt 00:01:14]} Qc7 {[%clk 01:15:34]} {[%emt 00:03:16]}
16. Bd2 {[%clk 00:55:45]} {[%emt 00:02:36]} Rac8 {[%clk 01:13:26]} {[%emt
00:02:34]} 17. Nf4 {[%clk 00:52:52]} {[%emt 00:03:27]} cxd4 {[%emt 00:03:55]}
18. exd4 {[%clk 00:53:04]} {[%emt 00:00:14]} Red8 {[%clk 01:09:24]} {[%emt
00:01:12]} 19. Qb3 {[%clk 00:48:57]} {[%emt 00:04:37]} Ne4 {[%clk 01:05:26]}
{[%emt 00:04:28]} 20. Bxe4 {[%clk 00:48:26]} {[%emt 00:01:01]} dxe4 {[%clk
01:05:15]} {[%emt 00:00:41]} 21. Ncd5 {[%clk 00:47:24]} {[%emt 00:01:31]} Bxd5
{[%clk 01:04:27]} {[%emt 00:01:19]} 22. Nxd5 {[%clk 00:47:41]} {[%emt
00:00:12]} Qd6 {[%clk 01:03:49]} {[%emt 00:01:06]} 23. Bb4 {[%clk 00:47:22]}
{[%emt 00:00:51]} Nc5 {[%clk 01:00:32]} {[%emt 00:03:47]} 24. dxc5 {[%emt
00:00:56]} Qxd5 {[%clk 01:00:48]} {[%emt 00:00:12]} 25. Qxd5 {[%clk 00:45:12]}
{[%emt 00:02:15]} Rxd5 {[%clk 01:01:09]} {[%emt 00:00:10]} 26. cxb6 {[%clk
00:43:25]} {[%emt 00:02:17]} Rb5 {[%clk 01:01:28]} {[%emt 00:00:10]} 27. Rxe4
{[%clk 00:40:44]} {[%emt 00:03:11]} Rxb6 {[%clk 01:01:06]} {[%emt 00:00:52]} 28.
Rb1 {[%clk 00:40:12]} {[%emt 00:01:02]} Rb5 {[%clk 00:59:27]} {[%emt 00:02:09]}
29. Kf1 {[%clk 00:38:55]} {[%emt 00:01:46]} a5 {[%clk 00:59:21]} {[%emt
00:00:37]} 30. Ba3 {[%clk 00:38:23]} {[%emt 00:01:02]} h5 {[%clk 00:59:08]}
{[%emt 00:00:43]} 31. b3 {[%clk 00:35:46]} {[%emt 00:03:07]} Kh7 {[%clk
00:57:28]} {[%emt 00:02:10]} 32. Re7 {[%clk 00:31:32]} {[%emt 00:04:44]} Kg8
{[%clk 00:56:49]} {[%emt 00:01:07]} 33. Rc1 {[%clk 00:30:03]} {[%emt 00:02:02]}
Rd8 {[%clk 00:53:31]} {[%emt 00:03:48]} 34. Rec7 {[%clk 00:27:52]} {[%emt
00:02:41]} Rbd5 {[%clk 00:52:14]} {[%emt 00:01:43]} 35. Rc8 {[%clk 00:27:17]}
{[%emt 00:01:08]} Bh6 {[%clk 00:49:05]} {[%emt 00:03:37]} 36. Rxd8+ {[%clk
00:26:34]} {[%emt 00:01:16]} Rxd8 {[%clk 00:49:31]} {[%emt 00:00:04]} 37. Rc2
{[%clk 00:26:33]} {[%emt 00:00:32]} Rb8 {[%clk 00:42:23]} {[%emt 00:07:28]} 38.
Bb2 {[%clk 00:23:51]} {[%emt 00:03:21]} Bf8 {[%clk 00:40:51]} {[%emt 00:02:02]}
39. Ke2 {[%clk 00:20:07]} {[%emt 00:04:15]} Bb4 {[%clk 00:40:28]} {[%emt
00:00:51]} 40. a3 {[%emt 00:00:58]} Bd6 {[%emt 00:01:40]} 41. Rc6 {[%clk
00:15:47]} {[%emt 00:02:56]} Rxb3 {[%clk 00:40:21]} {[%emt 00:00:55]} 42. Rc8+
{[%clk 00:16:00]} {[%emt 00:00:17]} Bf8 {[%clk 00:40:35]} {[%emt 00:00:17]} 43.
Bd4 {[%clk 00:15:20]} {[%emt 00:01:09]} Rb5 {[%clk 00:39:56]} {[%emt 00:01:09]}
44. Kd3 {[%clk 00:14:19]} {[%emt 00:01:31]} Rd5 {[%clk 00:36:38]} {[%emt
00:03:47]} 45. Kc4 {[%clk 00:14:24]} {[%emt 00:00:26]} Rf5 {[%clk 00:35:52]}
{[%emt 00:01:16]} 46. Bc5 {[%clk 00:14:24]} {[%emt 00:00:31]} Rf4+ {[%clk
00:35:45]} {[%emt 00:00:36]} 47. Kb5 {[%clk 00:14:34]} {[%emt 00:00:21]} Rf5
{[%clk 00:32:09]} {[%emt 00:04:06]} 48. Rxf8+ {[%clk 00:14:40]} {[%emt
00:00:23]} Kg7 {[%clk 00:32:33]} {[%emt 00:00:07]} 49. Ra8 {[%clk 00:14:44]}
{[%emt 00:00:26]} Rg5 {[%emt 00:02:22]} 50. g3 {[%clk 00:13:43]} {[%emt
00:00:55]} 1-0

[Event "Polofinale MCR juniorek 2023"]
[Site "Czech Republic"]
[Date "2023.11.14"]
[Round "5.1"]
[White "Buchtova, Viktorie"]
[Black "Sulcova, Tereza Radmila"]
[Result "1/2-1/2"]
[TimeControl "90 min per 40 moves + 15 min + 30 sec / move from move 1"]
[WhiteFideId "23714786"]
[BlackFideId "395196"]
[WhiteElo "1801"]
[BlackElo "1671"]

1. e4 {[%emt 00:00:03]} g6 {[%clk 01:30:27]} {[%emt 00:00:32]} 2. d4 {[%clk
01:30:47]} {[%emt 00:00:41]} Bg7 {[%clk 01:30:13]} {[%emt 00:00:43]} 3. Nf3
{[%clk 01:30:11]} {[%emt 00:01:06]} d6 {[%clk 01:28:50]} {[%emt 00:01:53]} 4.
Bc4 {[%clk 01:27:47]} {[%emt 00:02:54]} Nf6 {[%clk 01:25:51]} {[%emt 00:03:28]}
5. Qe2 {[%clk 01:20:57]} {[%emt 00:07:20]} O-O {[%clk 01:17:57]} {[%emt
00:08:24]} 6. e5 {[%clk 01:10:10]} {[%emt 00:11:18]} dxe5 {[%clk 01:07:18]}
{[%emt 00:11:09]} 7. dxe5 {[%clk 01:05:50]} {[%emt 00:04:50]} Nd5 {[%clk
01:04:48]} {[%emt 00:02:59]} 8. O-O {[%clk 01:02:30]} {[%emt 00:03:49]} Bg4
{[%clk 00:58:08]} {[%emt 00:07:10]} 9. Rd1 {[%clk 00:54:22]} {[%emt 00:08:38]}
e6 {[%clk 00:52:58]} {[%emt 00:05:40]} 10. Nbd2 {[%clk 00:49:27]} {[%emt
00:05:26]} Nc6 {[%clk 00:47:53]} {[%emt 00:05:35]} 11. h3 {[%clk 00:42:59]}
{[%emt 00:06:57]} Nd4 {[%clk 00:40:46]} {[%emt 00:07:38]} 12. Qe4 {[%clk
00:41:20]} {[%emt 00:02:10]} Nxf3+ {[%clk 00:35:14]} {[%emt 00:06:02]} 13. Nxf3
{[%clk 00:41:43]} {[%emt 00:00:07]} Bxf3 {[%clk 00:35:38]} {[%emt 00:00:06]} 14.
Qxf3 {[%clk 00:42:05]} {[%emt 00:00:07]} Bxe5 {[%clk 00:35:58]} {[%emt
00:00:11]} 15. Bxd5 {[%clk 00:42:19]} {[%emt 00:00:17]} exd5 {[%clk 00:36:19]}
{[%emt 00:00:08]} 16. Rxd5 {[%clk 00:42:42]} {[%emt 00:00:07]} Qf6 {[%clk
00:34:44]} {[%emt 00:02:05]} 17. Qxf6 {[%clk 00:41:21]} {[%emt 00:01:51]} Bxf6
{[%clk 00:35:04]} {[%emt 00:00:10]} 18. Bf4 {[%clk 00:41:21]} {[%emt 00:00:29]}
Rad8 {[%clk 00:34:16]} {[%emt 00:01:19]} 19. Rxd8 {[%clk 00:40:52]} {[%emt
00:00:59]} Rxd8 {[%clk 00:34:34]} {[%emt 00:00:12]} 20. c3 {[%clk 00:39:44]}
{[%emt 00:01:37]} c6 {[%clk 00:32:50]} {[%emt 00:02:13]} 1/2-1/2

[Event "Polofinale MCR juniorek 2023"]
[Site "Czech Republic"]
[Date "2023.11.14"]
[Round "5.2"]
[White "Stastna, Martina"]
[Black "Jakubse, Tamae Severina"]
[Result "0-1"]
[TimeControl "90 min per 40 moves + 15 min + 30 sec / move from move 1"]
[WhiteFideId "385123"]
[BlackFideId "23745975"]
[WhiteElo "1940"]
[BlackElo "1679"]

1. e4 {[%clk 01:30:57]} {[%emt 00:00:02]} e5 {[%clk 01:30:59]} {[%emt
00:00:02]} 2. Nf3 {[%clk 01:31:17]} {[%emt 00:00:09]} Nc6 {[%clk 01:31:23]}
{[%emt 00:00:06]} 3. Bb5 {[%clk 01:31:40]} {[%emt 00:00:07]} f5 {[%clk
01:31:48]} {[%emt 00:00:06]} 4. Nc3 {[%clk 01:32:00]} {[%emt 00:00:10]} fxe4
{[%clk 01:32:13]} {[%emt 00:00:06]} 5. Nxe4 {[%clk 01:32:20]} {[%emt 00:00:09]}
Nf6 {[%clk 01:32:37]} {[%emt 00:00:06]} 6. Nxf6+ {[%clk 01:32:07]} {[%emt
00:00:43]} Qxf6 {[%clk 01:32:59]} {[%emt 00:00:07]} 7. Qe2 {[%clk 01:31:33]}
{[%emt 00:01:04]} Be7 {[%clk 01:33:24]} {[%emt 00:00:06]} 8. Bxc6 {[%clk
01:30:42]} {[%emt 00:01:20]} bxc6 {[%clk 01:33:47]} {[%emt 00:00:07]} 9. Nxe5
{[%clk 01:29:55]} {[%emt 00:01:16]} Qe6 {[%clk 01:32:32]} {[%emt 00:01:46]} 10.
d4 {[%clk 01:29:00]} {[%emt 00:01:25]} O-O {[%clk 01:25:12]} {[%emt 00:07:50]}
11. Qc4 {[%clk 01:24:19]} {[%emt 00:05:10]} Qxc4 {[%clk 01:24:24]} {[%emt
00:01:19]} 12. Nxc4 {[%clk 01:24:42]} {[%emt 00:00:07]} Bf6 {[%clk 01:19:36]}
{[%emt 00:05:18]} 13. c3 {[%clk 01:20:26]} {[%emt 00:04:46]} Rb8 {[%clk
01:15:48]} {[%emt 00:04:18]} 14. b3 {[%clk 01:17:35]} {[%emt 00:03:22]} Ba6
{[%clk 01:08:42]} {[%emt 00:07:36]} 15. Ne3 {[%clk 01:12:34]} {[%emt 00:05:30]}
c5 {[%clk 01:02:54]} {[%emt 00:06:18]} 16. Ng4 {[%clk 00:54:17]} {[%emt
00:18:47]} Rbe8+ {[%clk 00:56:28]} {[%emt 00:06:56]} 17. Be3 {[%clk 00:47:43]}
{[%emt 00:07:04]} Bg5 {[%clk 00:49:05]} {[%emt 00:07:53]} 18. h4 {[%clk
00:36:14]} {[%emt 00:11:59]} Rf4 {[%clk 00:32:55]} {[%emt 00:16:40]} 19. Ne5
{[%clk 00:29:59]} {[%emt 00:06:45]} Rxh4 {[%clk 00:32:25]} {[%emt 00:01:00]} 20.
Rxh4 {[%clk 00:29:15]} {[%emt 00:01:14]} Bxh4 {[%clk 00:32:49]} {[%emt
00:00:07]} 21. Nxd7 {[%clk 00:29:08]} {[%emt 00:00:36]} Rxe3+ {[%clk 00:32:52]}
{[%emt 00:00:26]} 0-1

[Event "Polofinale MCR juniorek 2023"]
[Site "Czech Republic"]
[Date "2023.11.14"]
[Round "5.3"]
[White "Brezikova, Beata"]
[Black "Havelkova, Beata"]
[Result "1-0"]
[TimeControl "90 min per 40 moves + 15 min + 30 sec / move from move 1"]
[WhiteFideId "23727250"]
[BlackFideId "23709405"]
[WhiteElo "1622"]
[BlackElo "1736"]

1. e4 {[%clk 01:30:59]} c5 {[%clk 01:30:57]} {[%emt 00:00:03]} 2. Nc3 {[%clk
01:31:24]} {[%emt 00:00:04]} e6 {[%clk 01:31:23]} {[%emt 00:00:04]} 3. Nge2
{[%clk 01:31:50]} {[%emt 00:00:04]} d5 {[%clk 01:31:47]} {[%emt 00:00:06]} 4.
exd5 {[%clk 01:31:48]} {[%emt 00:00:32]} exd5 {[%clk 01:32:11]} {[%emt
00:00:06]} 5. d4 {[%clk 01:31:58]} {[%emt 00:00:20]} Nc6 {[%clk 01:29:25]}
{[%emt 00:03:16]} 6. g3 {[%clk 01:31:57]} {[%emt 00:00:31]} Bg4 {[%clk
01:29:38]} {[%emt 00:00:17]} 7. Bg2 {[%clk 01:31:42]} {[%emt 00:00:44]} Nxd4
{[%clk 01:29:42]} {[%emt 00:00:26]} 8. h3 {[%clk 01:31:29]} {[%emt 00:00:42]}
Bf3 {[%clk 01:22:18]} {[%emt 00:07:55]} 9. Kf1 {[%clk 01:30:54]} {[%emt
00:01:05]} Qf6 {[%clk 01:17:21]} {[%emt 00:05:26]} 10. Qd3 {[%clk 01:29:39]}
{[%emt 00:01:46]} Bxg2+ {[%clk 01:15:41]} {[%emt 00:02:10]} 11. Kxg2 {[%clk
01:29:52]} {[%emt 00:00:17]} O-O-O {[%clk 01:14:26]} {[%emt 00:01:45]} 12. Nxd4
{[%clk 01:25:48]} {[%emt 00:04:34]} cxd4 {[%clk 01:13:39]} {[%emt 00:01:18]} 13.
Ne2 {[%clk 01:24:38]} {[%emt 00:01:39]} Bc5 {[%clk 01:12:57]} {[%emt 00:01:12]}
14. Rd1 {[%clk 01:20:32]} {[%emt 00:04:36]} Ne7 {[%clk 01:07:47]} {[%emt
00:05:40]} 15. Nxd4 {[%clk 01:16:36]} {[%emt 00:04:26]} Nc6 {[%clk 01:06:25]}
{[%emt 00:01:52]} 16. Be3 {[%clk 01:13:34]} {[%emt 00:03:31]} g6 {[%clk
01:05:37]} {[%emt 00:01:18]} 17. Rd2 {[%clk 01:11:32]} {[%emt 00:02:34]} Rd7
{[%clk 00:57:29]} {[%emt 00:08:38]} 18. Rad1 {[%clk 01:08:26]} {[%emt
00:03:35]} Ne5 {[%clk 00:54:17]} {[%emt 00:03:40]} 19. Qc3 {[%clk 01:03:36]}
{[%emt 00:05:21]} Rc7 {[%clk 00:49:35]} {[%emt 00:05:13]} 20. Nb5 {[%clk
00:59:03]} {[%emt 00:05:03]} Qf3+ {[%clk 00:48:45]} {[%emt 00:01:20]} 21. Kg1
{[%clk 00:58:41]} {[%emt 00:00:52]} d4 {[%clk 00:47:50]} {[%emt 00:01:25]} 22.
Bxd4 {[%clk 00:55:11]} {[%emt 00:04:00]} Qe4 {[%clk 00:44:08]} {[%emt
00:04:11]} 23. Bxe5 {[%clk 00:50:20]} {[%emt 00:05:22]} Bxf2+ {[%clk 00:41:16]}
{[%emt 00:03:22]} 24. Kxf2 {[%clk 00:49:51]} {[%emt 00:01:00]} Qf5+ {[%clk
00:41:02]} {[%emt 00:00:44]} 25. Bf4 {[%clk 00:49:43]} {[%emt 00:00:39]} 1-0